[Event "IX Famalicao Open 2022"]
[Site "Vila Nova de Famalicao"]
[Date "2022.07.27"]
[Round "6.5"]
[White "Akshit Kumar J"]
[Black "Aditya Mittal"]
[Result "0-1"]
[ECO "B92"]
[WhiteElo "2103"]
[BlackElo "2480"]
[Annotator "TA"]
[PlyCount "76"]
[EventDate "2022.07.25"]
[EventType "tourn"]
[EventCountry "POR"]
[SourceTitle "playchess.com"]
[Source "ChessBase"]
[SourceQuality "1"]
[TimeControl "5400+30"]

{[%evp 17,76,11,20,10,10,12,15,-14,27,27,33,30,58,42,38,0,11,-10,-6,-16,31,16,30,12,12,12,8,0,0,0,0,0,0,0,0,0,0,2,21,13,8,20,56,7,6,-20,0,-19,-9,-16,-11,-206,-229,-737,-714,-29992,-29993,-29993,-29994,-29994,-29995]} 1. e4 {[%emt 0:00:08]} c5 {[%emt 0:00:06]} 2. Nf3 {[%emt 0:00:11]} d6 {[%emt 0:00:03]} 3. d4 {[%emt 0:00:07]} cxd4 {[%emt 0:00:01]} 4. Nxd4 {[%emt 0:00:05]} Nf6 {[%emt 0:00:02]} 5. Nc3 {[%emt 0:00:07]} a6 {[%emt 0:00:02]} 6. Be2 {[%emt 0:00:06]} e5 {[%emt 0:00:02]} 7. Nb3 {[%emt 0:00:06]} Be7 {[%emt 0:00:02]} 8. O-O {[%emt 0:00:09]} O-O {[%emt 0:00:05]} 9. Be3 {[%emt 0:00:05]} Be6 {[%emt 0:00:07]} 10. Re1 {[%emt 0:00:05] B92: Sicilian Najdorf: 6 Be2.} Nbd7 {[%emt 0:03:51]} 11. a4 {[%emt 0:00:16]} Rc8 {[%emt 0:05:31][%cal Oc8c3]} 12. a5 {[%emt 0:00:40] The position is equal.} Qc7 {[%emt 0:01:05]} (12... Rxc3 $5 13. bxc3 Nxe4 $11) 13. Bf3 {[%emt 0:00:58] was the old line (13.Qd2).} Rfd8 {[%emt 0:03:34]} 14. Nd2 {[%emt 0:02:55][%cal Bb3d2,Bd2f1,Bf1e3][%mdl 32]} h6 {[%emt 0:04:45]} 15. Nf1 {[%emt 0:03:32]} Qb8 {[%emt 0:10:18]} 16. Na4 {[%emt 0:11:45]} Rc6 {[%emt 0:03:53] [#]} 17. Nb6 $146 {[%emt 0:07:32]} ({Predecessor:} 17. Ng3 Rdc8 18. c3 Bd8 19. b4 b5 20. axb6 Nxb6 21. Nxb6 Bxb6 22. Rxa6 Bxe3 23. Rxc6 Bxf2+ 24. Kxf2 Rxc6 {0-1 (33) Paiva,H (2080)-Villar Perez,S (2170) Pontevedra 2018}) 17... Nxb6 {[%emt 0:09:16]} 18. Bxb6 {[%emt 0:00:33]} Rd7 {[%emt 0:06:43]} (18... Rdc8 $11) 19. Ne3 $14 {[%emt 0:02:32]} Bd8 {[%emt 0:00:04]} 20. Nd5 {[%emt 0:11:48]} Bxb6 {[%emt 0:06:17]} 21. Nxb6 {[%emt 0:00:08]} Rdc7 {[%emt 0:00:05]} 22. Re2 {[%emt 0:17:15][%cal Be1e2,Be2d2,Bd2d3][%mdl 32]} Nd7 {[%emt 0:01:42]} 23. Nxd7 {[%emt 0:00:34]} Rxd7 {[%emt 0:00:34]} 24. Rd2 {[%emt 0:01:52]} b5 {[%emt 0:08:07]} 25. axb6 {[%emt 0:02:36]} Qxb6 {[%emt 0:01:38]} 26. b3 {[%emt 0:03:54]} a5 {[%emt 0:10:57]} 27. h3 {[%emt 0:06:37]} Rdc7 {[%emt 0:02:57]} 28. c4 {[%emt 0:05:10]} Rb7 {[%emt 0:00:03]} 29. Rd3 {[%emt 0:00:24]} Qc5 {[%emt 0:00:33]} 30. Qd2 {[%emt 0:03:48]} (30. Bg4 $14) 30... Rb4 $11 {[%emt 0:00:08]} 31. Rd1 {[%emt 0:04:40]} Rcb6 {[%emt 0:09:23]} 32. Rxd6 {[%emt 0:02:24]} Rxb3 {[%emt 0:00:07] [#] Hoping for ...Rxd6.} 33. Rxb6 {[%emt 0:01:55]} ({But not} 33. Rd8+ Kh7 34. Ra8 Rb2 $17) 33... Rxb6 {[%emt 0:00:14]} 34. Qd8+ $2 {[%emt 0:05:39] White does not recover from this.} (34. Ra1 $11) 34... Kh7 $19 {[%emt 0:00:03] ...a4 is the strong threat.} 35. Qe8 {[%emt 0:01:45]} (35. Qd2) 35... Rb2 {[%emt 0:01:12]} 36. Rd8 {[%emt 0:05:25]} Qxf2+ {[%emt 0:00:22] Black mates.} 37. Kh1 {[%emt 0:00:12]} Qf1+ {[%emt 0:00:13]} 38. Kh2 {[%emt 0:00:10]} Qxf3 {[%emt 0:00:09] Weighted Error Value: White=0.59/Black=0.08 (flawless)} 0-1

[Event "IX Famalicao Open 2022"]
[Site "Vila Nova de Famalicao"]
[Date "2022.07.27"]
[Round "6.6"]
[White "Petkov, Vladimir"]
[Black "Borges, Guilherme Deola"]
[Result "1-0"]
[ECO "A49"]
[WhiteElo "2470"]
[BlackElo "2185"]
[Annotator "TA"]
[PlyCount "69"]
[EventDate "2022.07.25"]
[EventType "tourn"]
[EventCountry "POR"]
[SourceTitle "playchess.com"]
[Source "ChessBase"]
[SourceQuality "1"]
[TimeControl "5400+30"]

{[%evp 20,69,41,39,34,34,33,17,34,35,25,29,62,79,67,79,75,62,71,70,194,124,114,118,128,109,126,120,137,133,137,137,300,302,506,484,503,500,497,493,484,433,606,586,856,848,796,790,1803,1751,1242,1152]} 1. d4 Nf6 2. Nf3 g6 3. g3 Bg7 4. Bg2 O-O 5. O-O d6 6. a4 a5 7. Re1 Nbd7 8. Nc3 c6 9. e4 e5 10. h3 Re8 11. Be3 Qc7 {11...exd4 is more advanced technology. B07: Pirc Defence: Miscellaneous Systems.} 12. d5 Nb6 13. Nd2 cxd5 {The position is equal.} 14. exd5 Bd7 15. Qe2 Rac8 {[%cal Oe5e4]} 16. Nb5 Bxb5 17. Qxb5 {[#]} Nc4 $146 ({Predecessor:} 17... Nbd7 18. g4 h6 19. c3 b6 20. Bf1 Rb8 21. Nc4 Bf8 22. Rad1 Rec8 23. f3 Qd8 {½-½ (50) Landgraf,S-Tarnai,K ICCF corr 1973}) 18. Nxc4 Qxc4 19. c3 Nh5 ({Better is} 19... Qc7 $14) 20. Bb6 ({Don't take} 20. Qxa5 f5 21. Bf1 Qc7 22. Qxc7 Rxc7) (20. Qxb7 $18 Rb8 21. Qc6) 20... f5 $16 21. Bf1 Qxb5 22. axb5 e4 23. Rxa5 Nf6 24. Rd1 Nd7 25. Be3 b6 $2 {[#]} (25... Bf6 $16 26. b6 Ne5) 26. Ra7 $18 Nc5 (26... Red8 27. Rda1 Nc5 28. Bxc5 dxc5) 27. b4 {White is clearly winning.} Nd3 28. Bxd3 exd3 29. Rxd3 Bxc3 30. Bxb6 Bxb4 31. Re3 Rxe3 32. Bxe3 Rb8 33. b6 {[%cal Bb5b6,Bb6b7][%mdl 32]} h5 34. Rd7 Kf8 35. b7 {Weighted Error Value: White=0.04 (flawless) /Black=0.45} 1-0

[Event "IX Famalicao Open 2022"]
[Site "Vila Nova de Famalicao"]
[Date "2022.07.27"]
[Round "6.7"]
[White "Romano, Joao"]
[Black "Nigmatov, Ortik"]
[Result "0-1"]
[ECO "E62"]
[WhiteElo "2029"]
[BlackElo "2437"]
[Annotator "TA"]
[PlyCount "93"]
[EventDate "2022.07.25"]
[EventType "tourn"]
[EventCountry "POR"]
[SourceTitle "playchess.com"]
[Source "ChessBase"]
[SourceQuality "1"]
[TimeControl "5400+30"]

{[%evp 17,93,38,28,22,20,0,0,0,0,-8,-8,-10,0,-14,0,-16,1,-10,-13,-54,-45,-59,0,0,0,-12,-9,-12,-4,-63,-52,-65,-18,-32,-35,-198,-200,-190,-186,-231,-274,-516,-508,-639,-628,-527,-329,-346,-343,-345,-308,-332,-335,-406,-395,-444,-338,-344,-316,-309,-331,-339,-298,-294,-213,-222,-221,-270,-245,-2645,-147,-129,-11,-860,0,-361,-118,-447]} 1. d4 Nf6 2. c4 g6 3. Nc3 Bg7 4. g3 d6 5. Bg2 Nc6 6. Nf3 O-O 7. O-O e5 8. dxe5 dxe5 $1 {The main line 8...dxe5 scores better than 8...Nxe5.} 9. Bg5 Be6 10. Qc1 {E62: King's Indian: Fianchetto: 6...c6 and Panno Variation (6...Nc6) without ...a6.} Qc8 11. Nd2 Nd7 12. Nd5 {The position is equal.} h6 13. Be3 {[#]} f5 $146 ({Predecessor:} 13... Re8 14. Rd1 Nd4 15. Re1 c6 16. Nc3 f5 17. Nf3 Kh7 18. b3 c5 19. Rd1 Qc7 {0-1 (36) Vantika,A (2286)-Onischuk,V (2633) Chess.com INT 2020}) 14. Nb3 Kh7 15. Rd1 Rf7 16. Qc2 Bf8 17. Rac1 a5 {[%cal Ba7a5,Ba5a4][%mdl 32]} 18. Qb1 a4 19. Na1 e4 (19... Bd6 $15) 20. Nc2 $11 Nde5 21. Nd4 Ng4 22. Nxe6 Qxe6 23. Nf4 (23. Bd2 $11) 23... Qe8 24. Bd2 Bc5 {Black is more active.} (24... e3 $15 {should be considered.} 25. fxe3 Bc5) 25. Be1 g5 26. Rd5 $2 ({Only move:} 26. Nd5 $1 $15) 26... gxf4 $19 27. Rxc5 Nd4 $36 {[%mdl 2048] White is under strong pressure.} 28. Bf1 fxg3 (28... f3 29. e3 Ne2+ 30. Bxe2 fxe2 31. Qc2 $11) 29. hxg3 (29. fxg3 {is the only way for White.} Qe7 30. Rd5) 29... Rg7 {( -> ...Qh5)} 30. Bh3 Nxe2+ {Pair of Knights!} 31. Kf1 Nxc1 32. Qxc1 Qh5 33. Kg2 c6 34. Qf4 Rf7 35. Bd2 Qg6 ({Don't blunder} 35... Rg8 $2 36. Ra5 $19) 36. Bc3 b6 37. Rxc6 Qxc6 38. Bxg4 Qg6 (38... Qxc4 $2 39. Bxf5+ Rxf5 40. Qxf5+ Kg8 41. Qf6 $18) 39. Bd1 Re7 {Against Qe5} 40. Bc2 Rd8 {Hoping for ...Qg5.} 41. Bxa4 Rd3 {...e3 is the strong threat.} 42. Bb4 Rg7 43. Bd1 $2 (43. Bc2) 43... Rgd7 $2 (43... Rxd1 $19 44. Qh4 e3) 44. Be2 $17 {[#] Inhibits Qh5.} Qg5 45. Bxd3 $4 {[%mdl 8192]} (45. Qe5 $11) 45... Rxd3 $2 (45... Qxf4 $19 46. gxf4 exd3) 46. Qh4 $2 {[%mdl 8192]} (46. Qe5 $11 {and White has nothing to worry.}) 46... f4 $2 (46... Qxh4 $19 47. gxh4 Kg6) 47. Bc3 $2 {[%mdl 8192] Weighted Error Value: White=0.81/Black=0.49} (47. Qxf4 $17 {was the crucial defense.} Qxf4 48. gxf4) 0-1

[Event "IX Famalicao Open 2022"]
[Site "Vila Nova de Famalicao"]
[Date "2022.07.27"]
[Round "6.8"]
[White "Umetsubo, Cesar Hidemitsu"]
[Black "Marques, Ricardo Taborda Trig"]
[Result "1-0"]
[ECO "D72"]
[WhiteElo "2405"]
[BlackElo "1991"]
[Annotator "TA"]
[PlyCount "43"]
[EventDate "2022.07.25"]
[EventType "tourn"]
[EventCountry "POR"]
[SourceTitle "playchess.com"]
[Source "ChessBase"]
[SourceQuality "1"]
[TimeControl "5400+30"]

{[%evp 22,43,56,67,62,27,89,83,82,77,95,94,95,91,236,239,226,223,243,216,430,421,443,450]} 1. d4 Nf6 2. c4 g6 3. g3 Bg7 4. Bg2 d5 5. cxd5 Nxd5 6. e4 Nb6 7. Ne2 O-O 8. Nbc3 Nc6 9. d5 Na5 10. b3 c6 11. O-O cxd5 12. exd5 Bg4 {D72: Fianchetto Grünfeld: 5 cxd5 Nxd5 6 e4 Nb6 (without Nf3).} 13. Bd2 (13. f3 $5 {[%cal Rf3g4]} Bf5 14. Ba3 $14) 13... Nc8 (13... Rc8 $11 {remains equal.}) 14. h3 $16 {[#]} Bxe2 $146 {White is better.} ({Predecessor:} 14... Bd7 15. Rc1 Nd6 16. Bf4 Qb6 17. Qd2 Rfe8 18. Rfd1 Rac8 19. Be3 Qa6 20. Nd4 b6 {1-0 (30) Tregubov,P (2617)-Savitskiy,S (2330) Sochi 2015}) 15. Qxe2 {[#] b4 is the strong threat.} Nd6 16. Rfe1 {White is more active.} Re8 17. Rac1 $36 {[%mdl 2048] Black must now prevent Nb5. Black is under strong pressure.} Rc8 {A mistake that costs the game.} (17... b6 $16) 18. Nb5 $18 Rxc1 19. Rxc1 {aiming for Bxa5.} Nxb5 20. Qxb5 b6 {[#]} (20... Nc6 21. Qxb7 Nd4) 21. d6 a6 22. Qd3 {Weighted Error Value: White=0.05 (flawless) /Black=0.39} 1-0

[Event "IX Famalicao Open 2022"]
[Site "Vila Nova de Famalicao"]
[Date "2022.07.27"]
[Round "6.9"]
[White "Almeida, Joao Pedro Dias"]
[Black "Campora, Daniel H."]
[Result "0-1"]
[ECO "A85"]
[WhiteElo "1695"]
[BlackElo "2397"]
[Annotator "TA"]
[PlyCount "70"]
[EventDate "2022.07.25"]
[EventType "tourn"]
[EventCountry "POR"]
[SourceTitle "playchess.com"]
[Source "ChessBase"]
[SourceQuality "1"]
[TimeControl "5400+30"]

{[%evp 9,70,20,24,14,30,13,27,9,27,29,28,25,24,19,25,0,0,-70,-72,-70,-51,-136,-141,-144,-137,-143,-140,-125,-134,-116,-37,-78,-74,-204,-198,-236,-220,-201,-40,-127,-77,-104,-120,-116,-122,-149,-147,-171,-81,-884,-735,-848,-364,-335,-353,-379,-284,-258,-267,-387,-304,-489,-454]} 1. d4 {[%emt 0:00:03]} f5 {[%emt 0:00:15]} 2. c4 {[%emt 0:00:16]} Nf6 {[%emt 0:00:06]} 3. Nc3 {[%emt 0:00:23]} g6 {[%emt 0:00:08]} 4. Nf3 {[%emt 0:00:24]} Bg7 {[%emt 0:00:06]} 5. e3 {[%emt 0:00:28]} e6 {[%emt 0:01:20]} 6. Be2 {[%emt 0:00:21] A85: Dutch Defence: 2 c4 Nf6 3 Nc3.} O-O {[%emt 0:00:27][%cal Oc7c5]} 7. O-O {[%emt 0:00:55]} d6 {[%emt 0:00:45]} 8. Qc2 {[%emt 0:01:12] [#] White has an edge.} Qe8 $146 {[%emt 0:01:50]} ({Predecessor:} 8... Nc6 9. a3 Qe7 10. b4 e5 11. Nd5 Nxd5 12. cxd5 exd4 13. dxc6 d3 14. Bxd3 Bxa1 15. Qa2+ Be6 16. Qxa1 bxc6 17. Nd4 Bd5 18. Qc3 Qg5 19. e4 {1-0 (19) Schreck,R (2142)-Watzlawek,M (2044) Germany 2016}) 9. b3 {[%emt 0:05:58]} Nc6 {[%emt 0:10:17]} 10. Ba3 {[%emt 0:02:02]} a5 {[%emt 0:02:37][%cal Ba7a5,Ba5b4][%mdl 32]} 11. Nb5 {[%emt 0:00:30]} Qd8 {[%emt 0:05:33]} 12. Rac1 Nb4 {[%emt 0:04:19]} 13. Bxb4 {[%emt 0:01:44]} (13. Qb1 $11) 13... axb4 $15 {[%emt 0:00:12]} 14. c5 {[%emt 0:01:46]} Ne4 {[%emt 0:07:15]} 15. c6 {[%emt 0:09:27]} (15. cxd6 $2 c6 16. Nd2 (16. Nc7 $2 Ra5 $19) 16... cxb5 17. Nxe4 fxe4 $19) (15. a4 $15) 15... bxc6 $17 {[%emt 0:05:54]} 16. Qxc6 {[%emt 0:00:16]} Rxa2 {[%emt 0:00:39]} 17. Bd3 {[%emt 0:02:32]} Bd7 $36 {[%emt 0:01:24][%mdl 2048] Black is really pushing.} 18. Qxc7 {[%emt 0:02:11]} Bxb5 {[%emt 0:00:47] Black is more active.} 19. Bxb5 {[%emt 0:01:43]} Nc3 {[%emt 0:00:07]} (19... Qxc7 $1 $17 20. Rxc7 Bh6) 20. Qc4 {[%emt 0:01:02]} Ne2+ {[%emt 0:07:57]} 21. Kh1 {[%emt 0:00:15]} (21. Qxe2 $17 Rxe2 22. Bxe2) 21... Nxc1 $19 {[%emt 0:01:17]} 22. Qxe6+ {[%emt 0:00:29]} Kh8 {[%emt 0:00:19]} 23. Rxc1 {[%emt 0:00:23]} Qa5 $2 {[%emt 0:06:51]} ({Better is} 23... Rxf2 $19 {...Rb2 is the strong threat.} 24. Ra1 Rb2) 24. Ba4 {[%emt 0:03:54]} (24. Bc4 $15) 24... Qa6 {[%emt 0:12:11]} (24... Rxf2 $142 {And now ...Qd8 would win.} 25. Qxd6 f4 26. exf4 Qf5) 25. Ng5 {[%emt 0:07:38] [#]} Rc2 $3 {[%emt 0:01:37][%cal Rc2c1][%mdl 512]} 26. Rg1 {[%emt 0:01:25] [#]} (26. Re1 h6) 26... h6 $1 {[%emt 0:06:02]} (26... Rxf2 $6 27. Nf7+ Rxf7 28. Qxf7 $11) 27. Nf7+ {[%emt 0:01:25]} Kh7 {[%emt 0:00:05]} 28. Be8 {[%emt 0:01:03][%cal Of7e5]} Rc7 {[%emt 0:03:02]} ({Weaker is} 28... Qc8 29. Bd7 Qc3 30. Nxd6 Rxf2 31. Ne8) (28... Qa8 $19 {is more deadly.} 29. Bb5 (29. Nxd6 $2 Rf6 $19) 29... Qb8) 29. g4 $2 {[%emt 0:03:29][%mdl 8192]} (29. Ne5 $17 Rf6 30. Bxg6+ Kh8 31. Qe8+ (31. Nf7+ $2 Rcxf7 32. Qd5 Rf8 $19) 31... Bf8 32. Qd8 dxe5 33. Qxc7 Rxg6 34. Qxe5+ Qf6 35. Qxf6+ Rxf6 36. Rc1) 29... Qb7+ {[%emt 0:00:52]} 30. d5 {[%emt 0:00:15] [#]} Rcxf7 {[%emt 0:01:00]} (30... Rxe8 $142 $1 {[%mdl 512]} 31. Nxd6 Rxe6 32. Nxb7 Re5) 31. gxf5 {[%emt 0:03:08] [#]} gxf5 {[%emt 0:03:33]} 32. Bxf7 {[%emt 0:01:30]} (32. Qg6+ Kg8) 32... Rxf7 {[%emt 0:00:50][%cal Bf8f7,Bf7f6,Bf6d6][%mdl 32]} 33. Qxd6 {[%emt 0:00:27]} Rf6 {[%emt 0:00:50]} 34. Qe5 {[%emt 0:02:44]} (34. Qc5 {was the only chance.}) 34... Qd7 {[%emt 0:00:41]} 35. Rd1 $2 {[%emt 0:04:15]} (35. e4) 35... Rd6 {[%emt 0:00:41] Weighted Error Value: White=0.59/Black=0.52} 0-1

[Event "IX Famalicao Open 2022"]
[Site "Vila Nova de Famalicao"]
[Date "2022.07.27"]
[Round "6.10"]
[White "Dias, Ivo Rodrigues"]
[Black "Santos, Jose Miguel Sereno"]
[Result "1-0"]
[ECO "B12"]
[WhiteElo "2133"]
[BlackElo "1850"]
[Annotator "TA"]
[PlyCount "83"]
[EventDate "2022.07.25"]
[EventType "tourn"]
[EventCountry "POR"]
[SourceTitle "playchess.com"]
[Source "ChessBase"]
[SourceQuality "1"]
[TimeControl "5400+30"]

{[%evp 9,83,12,18,0,14,0,29,36,35,25,39,40,52,52,131,132,177,162,204,200,265,284,336,250,229,237,331,326,468,460,531,543,492,496,458,451,457,316,306,286,373,374,370,352,362,320,338,323,311,312,461,417,459,433,537,516,573,566,581,565,561,560,1364,558,581,581,759,750,29968,29969,29968,5779,29974,29976,29972,5281]} 1. e4 {[%emt 0:08:00]} c6 {[%emt 0:00:15]} 2. d4 {[%emt 0:00:51]} d5 {[%emt 0:00:06]} 3. e5 {[%emt 0:00:14]} c5 {[%emt 0:00:10]} 4. dxc5 {[%emt 0:00:08]} e6 {[%emt 0:00:06]} 5. a3 {[%emt 0:00:05]} Bxc5 {[%emt 0:08:15]} 6. b4 {[%emt 0:02:46] B12: Caro-Kann: Advance Variation.} Bb6 {[%emt 0:00:51]} 7. Qg4 {[%emt 0:08:50]} Kf8 {[%emt 0:02:38]} (7... Ne7 $5 {[%cal Rd8c7]}) 8. Nf3 {[%emt 0:00:49] White has an edge.} Nc6 {[%emt 0:04:10]} 9. Bb2 {[%emt 0:05:38]} Nh6 {[%emt 0:30:43]} 10. Qf4 {[%emt 0:01:43] [#]} a6 $146 {[%emt 0:00:33]} ({Predecessor:} 10... Qe7 11. Bd3 Bd7 12. Ng5 Bd8 13. Nxh7+ Kg8 14. Nf6+ gxf6 15. exf6 Qxf6 16. Bxf6 {1-0 (16) Zaksaite,S (2261)-Piliczewski,B (1938) Chess.com INT 2022}) 11. Bd3 {[%emt 0:00:26]} Qe7 {[%emt 0:03:10]} (11... Nf5 $14) 12. Nbd2 $16 {[%emt 0:05:59]} Bd7 {[%emt 0:00:28]} 13. O-O {[%emt 0:10:05]} Rc8 {[%emt 0:01:33]} 14. c4 {[%emt 0:04:28]} Bd8 {[%emt 0:05:53]} 15. Rfe1 {[%emt 0:04:01]} g5 {[%emt 0:00:35]} 16. Qe3 {[%emt 0:01:10]} Ng4 {[%emt 0:00:36] [#]} 17. Qe2 {[%emt 0:00:34]} dxc4 {[%emt 0:04:47]} 18. Nxc4 {[%emt 0:00:59]} Bc7 {[%emt 0:01:15]} (18... h5 $142 19. Bc1 Kg8 20. Bxg5 Nd4 21. Nxd4 Qxg5) 19. h3 $18 {[%emt 0:11:18][%cal Bh2h3,Bh3h4][%mdl 32]} Nh6 {[%emt 0:01:34]} 20. Bc1 Rg8 {[%emt 0:03:18]} 21. h4 {[%emt 0:02:22]} Ng4 {[%emt 0:00:55]} 22. Bxg5 {[%emt 0:01:20]} Rxg5 {[%emt 0:00:47]} 23. Nxg5 {[%emt 0:02:19]} h5 {[%emt 0:00:36]} 24. Rac1 {[%emt 0:01:36] Black must now prevent Qe4.} b5 {[%emt 0:00:24]} 25. Nd6 {[%emt 0:01:03]} Bxd6 {[%emt 0:00:19]} 26. exd6 {[%emt 0:00:05] Chess con chili.} Qxd6 {[%emt 0:00:03] ( -> ...Qh2+)} 27. g3 {[%emt 0:01:34]} Nd4 {[%emt 0:08:33]} 28. Rxc8+ {[%emt 0:00:47]} Bxc8 {[%emt 0:00:02]} 29. Qe4 {[%emt 0:01:38]} f6 {[%emt 0:01:35]} (29... Qb6 {is a better defense.}) 30. Nf3 {[%emt 0:05:05]} Nxf3+ {[%emt 0:01:12]} 31. Qxf3 {[%emt 0:00:05]} Qd4 {[%emt 0:00:20]} 32. Be4 {[%emt 0:02:08] Against Bb7} f5 {[%emt 0:00:54] [#]} 33. Rd1 $1 {[%emt 0:02:34][%cal Be1d1,Bd1d2,Bd2e2,Be2e4,Be4f4,Bf4d4][%mdl 32]} Qb6 {[%emt 0:00:11]} (33... Qxe4 34. Rd8+) 34. Rd2 {[%emt 0:01:06][%cal Of3c3] Qc3! is the strong threat.} Ke7 {[%emt 0:00:24]} 35. Qc3 {[%emt 0:02:04]} fxe4 {[%emt 0:00:50]} 36. Qxc8 {[%emt 0:00:50][%mdl 4096] Endgame KQR-KQN} (36. Qg7+ $142 Ke8 37. Qg8+ Ke7 38. Qg5+ Kf7 39. Qxh5+ Kf8 40. Qxg4) 36... Ne5 {[%emt 0:02:25] Threatens to win with ...Nf3+.} 37. Re2 {[%emt 0:02:26]} Nc4 {[%emt 0:02:02]} 38. Rxe4 {[%emt 0:00:42]} Nxa3 {[%emt 0:02:27]} 39. Rf4 {[%emt 0:02:32]} Nc4 {[%emt 0:01:01]} 40. Qh8 {[%emt 0:01:32]} (40. Qf8+ $142 Kd7 41. Rf6 Ne5 42. Qg7+ Kd6 {[#]} 43. Rxe6+ $3 {[%mdl 512]} Kxe6 44. Qh6+ Kd5 45. Qxb6) 40... Kd6 {[%emt 0:01:09]} 41. Rd4+ {[%emt 0:01:58]} Kc6 {[%emt 0:00:39]} 42. Qe8+ {[%emt 0:01:16] White took control after the opening.  Weighted Error Value: White=0.29 (precise) /Black=0.71} 1-0

[Event "IX Famalicao Open 2022"]
[Site "Vila Nova de Famalicao"]
[Date "2022.07.27"]
[Round "6.11"]
[White "Marques, Joao Goncalo B A"]
[Black "Paulino, Jose"]
[Result "0-1"]
[ECO "B01"]
[WhiteElo "1474"]
[BlackElo "2032"]
[Annotator "TA"]
[PlyCount "108"]
[EventDate "2022.07.25"]
[EventType "tourn"]
[EventCountry "POR"]
[SourceTitle "playchess.com"]
[Source "ChessBase"]
[SourceQuality "1"]
[TimeControl "5400+30"]

{[%evp 12,108,57,18,33,23,18,-14,-7,-14,-16,-57,-51,-52,-60,-102,-99,-104,-107,-108,-116,-110,-112,-100,-87,-125,-123,-121,-135,-135,-135,-143,-131,-138,-112,-118,-117,-134,-132,-149,-136,-158,-154,-169,-182,-185,-162,-168,-153,-181,-102,-199,-170,-163,-156,-202,-196,-213,-208,-229,-223,-218,-201,-216,-201,-318,-324,-329,-329,-609,-570,-610,-583,-541,-574,-904,-801,-726,-720,-1395,-975,-956,-977,-967,-971,-964,-959,-952,-939,-935,-934,-914,-895,-1008,-1000,-995,-960,-1150,-1140]} 1. e4 d5 2. exd5 Nf6 {[%cal Bg8f6,Bf6d5,Bd5f4,Bf4h3][%mdl 32]} 3. Nf3 Nxd5 4. d4 Bg4 5. Be2 e6 6. O-O Be7 7. Nbd2 Nf4 {B01: Scandinavian Defence.} 8. Bb5+ c6 {[#]} 9. Ba4 $146 ({Predecessor:} 9. Bc4 O-O 10. c3 Qc7 11. Ne4 c5 12. h3 Bh5 13. Ng3 Bg6 14. Ne5 Nd5 15. Bxd5 exd5 16. Nxg6 hxg6 17. dxc5 Qxc5 {0-1 (49) Lian,M (1855)-Bukhteeva,V (2110) Budva 2019}) 9... Qa5 {The position is equal.} 10. c3 Qh5 11. g3 Nh3+ 12. Kg2 $1 ({Not} 12. Kh1 $2 e5 13. Kg2 Ng5 $17) 12... Ng5 $36 {[%cal Oe6e5][%mdl 2048] Black has some pressure.} 13. h4 Bh3+ 14. Kg1 Nxf3+ 15. Nxf3 {[%cal Of3e5]} Bxf1 16. Kxf1 Nd7 17. Qd3 Nb6 18. Bd1 Qb5 19. Qxb5 cxb5 20. Be2 a6 21. Ne5 Rc8 22. Bd2 f6 23. Nd3 Nc4 24. Bf4 Bd6 25. Bxd6 Nxd6 26. Nc5 Kf7 27. Bf3 Rc7 28. a4 bxa4 29. Rxa4 Re8 30. Ke2 g6 ({Black should try} 30... a5 $19 31. Kd2 b6) 31. Kd2 (31. Kd3 $17 {was worth a try.}) 31... f5 32. Nd3 Kf6 {[%cal Oa6a5]} 33. Ne5 (33. Ra1 $17) 33... Nf7 $19 34. Nd3 e5 {aiming for ...e4.} 35. Nb4 Kg7 36. Nd5 Rd7 37. Nb6 Rdd8 38. Bxb7 (38. d5 {is a better defense.}) 38... Rb8 39. Bc6 {[#]} Re6 ({Weaker is} 39... Rxb6 40. Bxe8 Nd6 41. Bd7 Rxb2+ 42. Ke3 $11) 40. Nd7 $2 (40. d5 Rxc6 41. dxc6 Rxb6 42. c7) 40... Rxb2+ {Black is clearly winning.} 41. Kc1 {Hoping for d5.} Rxf2 ({And not} 41... Rxc6 42. Kxb2 exd4 43. Rxd4 $11) 42. d5 Re7 {...e4 is the strong threat.} 43. Rxa6 e4 {Threatens to win with ...e3.} 44. Nc5 e3 45. Ne6+ Kh6 {Strongly threatening ...Rf1+.} 46. Bb5 {Prevents Rf1+.} Rb7 {( -> ...Ne5)} 47. Nd4 {[#]} Rxb5 $1 {[%mdl 512]} 48. Nxb5 {[%mdl 4096] Endgame KRN-KRN} Rf1+ 49. Kc2 e2 50. Re6 e1=Q 51. Rxe1 Rxe1 52. d6 Kg7 53. c4 Kf6 54. Nd4 Nxd6 {Weighted Error Value: White=0.49/Black=0.15 (very precise)} 0-1